bitfinex/quotes_ETHUSD_20241116
["timestamp","ask_amount","ask_price","bid_price","bid_amount"]
[1731763120035,3.0,3189.3,3188.1,3.13659]
[1731763120243,0.6253115,3189.2,3188.1,3.13659]
[1731763120439,3.13605,3188.8,3188.1,3.13659]
[1731763120647,3.13614,3188.7,3187.9,3.13683]
[1731763121055,3.13614,3188.7,3188.0,3.13672]
[1731763121259,3.13605,3188.8,3188.1,3.13659]
[1731763122486,3.1361,3188.7,3188.1,3.13659]
[1731763122776,0.6253115,3189.2,3187.6,6.13715]
[1731763122777,3.13634,3188.5,3187.6,6.13715]
[1731763122932,3.13634,3188.5,3187.7,3.13699]
[1731763123131,3.13645,3188.4,3187.6,3.13715]
[1731763123332,3.13668,3188.1,3187.4,3.13726]
[1731763123533,3.13677,3188.0,3187.2,3.13755]
[1731763123759,3.13694,3187.9,3187.2,4.09699904]
[1731763123959,3.13627,3188.5,3187.1,3.13764]
[1731763123960,3.13697,3187.8,3187.1,3.13764]
[1731763124179,3.13697,3187.8,3186.9,3.13781]
[1731763124470,3.13715,3187.7,3186.9,3.13781]
[1731763124672,3.13715,3187.7,3187.0,3.0]
[1731763124673,3.13708,3187.7,3187.0,3.0]
[1731763124890,3.13678,3188.0,3187.1,3.13763]
[1731763125060,3.13696,3187.8,3186.9,6.13783]
[1731763125246,3.13706,3187.7,3187.0,0.613783]
[1731763125670,3.13733,3187.5,3186.8,6.13793]
[1731763125971,3.13733,3187.5,3187.0,3.0]
[1731763126202,3.13711,3187.7,3187.0,3.0]
[1731763126416,3.0,3188.5,3187.0,6.60583733]
[1731763126560,3.13637,3188.4,3187.7,3.13704]
[1731763126899,3.0,3188.5,3187.8,3.13693]
[1731763126900,3.13629,3188.5,3187.8,3.13693]
[1731763127102,3.13644,3188.4,3187.6,3.13715]
[1731763127499,6.76658387,3188.6,3187.6,3.13715]
[1731763127500,3.13647,3188.3,3187.6,3.13715]
[1731763127670,3.63039387,3188.6,3187.2,3.13752]
[1731763128006,3.13686,3187.9,3187.2,3.13752]
[1731763129706,3.13686,3187.9,3187.3,3.13742]
[1731763130091,3.13627,3188.5,3187.3,0.627494]
[1731763130291,3.0,3188.4,3187.8,3.13694]
[1731763130606,3.13627,3188.5,3187.8,3.13695]
[1731763130607,3.13635,3188.5,3187.8,3.13695]
[1731763130771,3.0,3188.4,3187.8,3.13695]
[1731763130969,3.13635,3188.5,3187.9,3.17456937]
[1731763131193,3.13635,3188.5,3187.9,0.03773937]
[1731763131513,3.13653,3188.3,3187.9,0.03773937]
[1731763131811,3.13653,3188.3,3187.6,3.13714]
[1731763132165,3.13628,3188.5,3187.7,0.03773972]
[1731763132367,3.0,3188.6,3188.0,3.13675]
[1731763132568,3.0,3188.7,3188.1,3.13657]
[1731763132790,3.0,3188.7,3188.1,3.1739812]
[1731763132976,3.1358,3189.0,3188.3,3.13644]
[1731763133189,0.62736539,3189.0,3188.2,3.13656]
[1731763133511,3.13578,3189.0,3188.4,3.13636]
[1731763133803,3.13578,3189.0,3188.4,3.13635]
[1731763134004,3.13578,3189.0,3188.5,0.03730968]
[1731763134213,3.76118947,3189.2,3188.5,0.03730968]
[1731763134372,3.1357,3189.1,3188.5,0.03730968]
[1731763134769,3.0,3189.1,3188.5,3.17355968]
[1731763135510,3.13558,3189.2,3188.6,3.13614]
[1731763136017,3.13558,3189.2,3188.7,0.03724898]
[1731763136511,3.13531,3189.5,3188.7,0.03724898]
[1731763136684,3.135,3189.8,3188.9,3.13585]
[1731763136869,3.135,3189.8,3188.8,3.13588]
[1731763137070,3.13509,3189.7,3189.0,3.1357]
[1731763137270,3.13509,3189.7,3189.1,3.13565]
[1731763137507,3.13509,3189.7,3189.1,0.03721329]
[1731763137671,3.13499,3189.8,3189.1,0.03721329]
[1731763137873,3.13555,3189.3,3188.5,3.13619]
[1731763138074,6.2711,3189.3,3188.5,3.13619]
[1731763138286,6.2711,3189.3,3188.6,0.03725279]
[1731763138287,3.13559,3189.2,3188.6,0.03725279]
[1731763139123,3.13555,3189.3,3188.6,0.03725279]
[1731763139622,3.13559,3189.2,3188.6,0.03725279]
[1731763139789,3.13539,3189.4,3188.6,0.03725279]
[1731763139988,3.13539,3189.4,3188.7,3.13599]
[1731763140187,3.13539,3189.4,3188.8,0.0370611]
[1731763140385,0.63642472,3189.9,3188.8,0.0370611]
[1731763140590,3.13549,3189.3,3188.8,0.0370611]
[1731763140775,3.13549,3189.3,3188.7,3.13599]
[1731763141127,3.13549,3189.3,3188.8,0.03715211]
[1731763141476,3.13549,3189.3,3188.6,3.13615]
[1731763142177,3.13549,3189.3,3188.7,0.03709145]
[1731763143494,3.13549,3189.3,3188.7,3.17310145]
[1731763143681,3.13549,3189.3,3188.7,0.03709145]
[1731763143991,3.13559,3189.2,3188.7,0.03709145]
[1731763145626,0.63642472,3189.9,3188.0,3.06272225]
[1731763145827,3.13526,3189.6,3188.3,3.0]
[1731763146056,3.13526,3189.6,3188.4,0.09981937]
[1731763146257,3.13526,3189.6,3188.9,3.1358]
[1731763146564,3.13526,3189.6,3188.4,0.09981937]
[1731763146565,3.13526,3189.6,3189.0,3.13576]
[1731763146716,3.13526,3189.6,3189.0,0.03710117]
[1731763146921,3.1354,3189.4,3189.0,0.03710117]
[1731763147156,3.1354,3189.4,3188.8,3.13595]
[1731763147453,3.1354,3189.4,3188.6,3.13614]
[1731763147664,3.13569,3189.1,3188.9,0.03718462]
[1731763147831,3.13569,3189.1,3188.4,3.13634]
[1731763148031,3.13569,3189.1,3188.5,0.03730604]
[1731763148358,3.13592,3188.9,3188.2,3.13655]
[1731763148686,3.13598,3188.8,3188.6,0.03727957]
[1731763148853,3.13598,3188.8,3188.2,3.13655]
[1731763149057,3.13592,3188.9,3188.3,0.03737065]
[1731763149280,3.0,3189.4,3188.4,3.13633]
[1731763149281,3.0,3189.2,3188.4,3.13633]
[1731763149510,3.13578,3189.0,3188.4,3.13633]
[1731763149803,3.13598,3188.8,3188.5,0.03730993]
[1731763150109,3.13598,3188.8,3188.2,3.13655]
[1731763150293,3.0,3189.4,3188.6,0.03727957]
[1731763150624,3.0,3189.4,3188.2,3.13655]
[1731763150969,3.0,3189.4,3188.3,0.03737065]
[1731763151212,3.13558,3189.2,3188.3,0.03737065]
[1731763151368,3.13558,3189.2,3187.6,3.13712]
[1731763151369,3.13636,3188.4,3187.6,3.13712]
[1731763151565,3.13636,3188.4,3187.7,3.13704]
[1731763152605,3.13636,3188.4,3187.8,3.13694]
[1731763153317,3.1362,3188.6,3187.6,3.13712]
[1731763153469,3.13656,3188.2,3187.1,3.0]
[1731763153659,0.62894027,3188.7,3187.0,2.99205533]
[1731763153660,3.1369,3187.9,3187.0,3.13774]
[1731763153862,3.1369,3187.9,3187.2,3.13748]
[1731763154600,3.13698,3187.8,3187.2,3.13748]
[1731763154766,3.13698,3187.8,3187.0,3.13768]
[1731763155185,3.13698,3187.8,3187.2,3.13752]
[1731763157771,3.13682,3188.0,3187.4,3.13734]
[1731763159861,3.13682,3188.0,3187.2,3.13754]
[1731763160200,3.13666,3188.1,3187.2,3.13754]
[1731763160405,3.13683,3188.0,3187.3,0.03786355]
[1731763161098,3.13653,3188.3,3187.6,3.1371]
[1731763161273,3.13604,3188.8,3187.7,0.06274538]
[1731763161468,3.13614,3188.7,3188.0,3.13668]
[1731763161860,3.13614,3188.7,3188.1,0.03762055]
[1731763162262,3.13614,3188.7,3188.1,3.17427055]
[1731763163187,3.62909016,3188.8,3188.2,3.13654]
[1731763163399,6.13606,3188.8,3188.1,3.17428055]
[1731763163595,3.13601,3188.8,3188.3,0.03755982]
[1731763163824,3.13636,3188.4,3188.3,0.03755982]
[1731763164150,3.13636,3188.4,3187.0,3.60582333]
[1731763164151,3.13692,3187.9,3187.2,3.13754]
[1731763164290,3.13636,3188.4,3187.2,3.13754]
[1731763164488,3.13693,3187.9,3187.3,0.0366684]
[1731763164692,3.13696,3187.8,3187.3,0.0366684]
[1731763165098,3.13696,3187.8,3187.2,3.13754]
[1731763165428,3.13696,3187.8,3187.4,0.03663315]
[1731763165631,3.13696,3187.8,3187.5,0.03660277]
[1731763166027,3.13712,3187.7,3187.6,0.03657239]
[1731763166233,3.13712,3187.7,3187.0,3.13773]
[1731763166440,3.13716,3187.6,3187.1,0.036774]
[1731763166646,3.13696,3187.8,3187.1,3.174374]
[1731763166798,3.13705,3187.7,3187.1,3.174374]
[1731763166998,3.13698,3187.8,3187.2,3.13754]
[1731763167412,3.13698,3187.8,3187.3,0.0367181]
[1731763167649,3.13698,3187.8,3187.2,3.13754]
[1731763167934,3.13698,3187.8,3187.3,0.0367181]
[1731763168445,3.13698,3187.8,3187.4,0.03668772]
[1731763168789,3.13698,3187.8,3187.1,3.13758]
[1731763168962,3.13698,3187.8,3187.5,0.03665734]
[1731763169130,3.13698,3187.8,3187.2,3.13753]
[1731763169333,3.13679,3188.0,3187.6,0.03662696]
[1731763169669,3.13679,3188.0,3187.7,0.03659658]
[1731763170062,3.13679,3188.0,3187.3,3.13738]
[1731763170366,3.13659,3188.2,3187.5,3.13724]
[1731763170585,3.13666,3188.1,3187.5,3.13724]
[1731763170728,3.13676,3188.0,3187.4,0.03668772]
[1731763170927,3.13666,3188.1,3187.6,0.03662696]
[1731763171165,3.13677,3188.0,3187.5,0.03665734]
[1731763171368,3.13677,3188.0,3187.3,3.13738]
[1731763171571,3.13677,3188.0,3187.6,0.03662696]
[1731763171770,3.13677,3188.0,3187.3,3.13738]
[1731763171971,3.13677,3188.0,3187.7,0.03659658]
[1731763172172,3.13677,3188.0,3187.3,3.13738]
[1731763172374,3.13686,3187.9,3187.8,0.0365662]
[1731763172537,3.13697,3187.8,3187.1,3.13763]
[1731763172739,3.13686,3187.9,3187.1,3.13763]
[1731763173065,3.13706,3187.7,3187.2,0.03674849]
[1731763173654,3.13719,3187.6,3187.2,0.03674849]
[1731763173881,3.13719,3187.6,3186.9,3.13784]
[1731763174051,3.13719,3187.6,3187.3,0.0367181]
[1731763174236,3.13719,3187.6,3186.9,3.13784]
[1731763174442,3.13719,3187.6,3187.0,0.03680927]
[1731763175338,3.13735,3187.5,3187.0,0.03680927]
[1731763175680,3.13719,3187.6,3186.9,3.13784]
[1731763175835,3.13719,3187.6,3187.1,0.03562246]
[1731763176145,3.13752,3187.3,3186.7,3.13803]
[1731763176346,3.13752,3187.3,3187.2,0.03559208]
[1731763176572,3.13752,3187.3,3186.5,3.1382]
[1731763176573,3.13765,3187.1,3186.5,3.1382]
[1731763177389,3.13784,3187.0,3186.3,3.1384]
[1731763178039,3.13786,3186.9,3186.3,3.1384]
[1731763178949,3.13796,3186.8,3186.2,0.74086608]
[1731763179252,3.13796,3186.8,3186.2,6.13852]
[1731763179677,3.13781,3187.0,3186.2,6.13852]
[1731763180176,3.1373,3187.5,3186.7,3.13796]
[1731763180376,3.0,3187.8,3186.5,0.06275452]
[1731763180580,3.0,3187.8,3186.9,3.13784]
[1731763180581,3.13725,3187.5,3186.9,3.13784]
[1731763181174,0.64253071,3187.9,3187.1,3.13762]
[1731763181175,3.64253071,3187.9,3187.1,3.13762]
[1731763181336,3.13706,3187.7,3186.8,3.13791]
[1731763181542,3.13706,3187.7,3187.1,3.13761]
[1731763184177,3.13686,3187.9,3186.7,3.13794]
[1731763184382,3.13712,3187.7,3187.1,3.13764]
[1731763186872,3.13686,3187.9,3187.1,3.13764]
[1731763187047,3.13686,3187.9,3187.2,3.1375]
[1731763187048,3.13696,3187.8,3187.2,3.1375]
[1731763188242,3.13686,3187.9,3187.2,3.1375]
[1731763188480,3.13705,3187.7,3187.2,3.1375]
[1731763188795,3.13699,3187.8,3187.2,3.1375]
[1731763188964,3.13708,3187.7,3187.0,3.13773]
[1731763189779,3.13708,3187.7,3187.1,3.13763]
[1731763190351,3.13708,3187.7,3187.0,3.13773]
[1731763190352,3.13708,3187.7,3187.2,0.0356736]
[1731763190552,3.13708,3187.7,3187.2,3.1732136]
[1731763190778,3.13708,3187.7,3187.2,3.13754]
[1731763191091,3.13708,3187.7,3187.3,0.03564321]
[1731763191451,3.13708,3187.7,3187.2,3.13754]
[1731763191661,3.13708,3187.7,3187.3,0.03564321]
[1731763192010,3.13708,3187.7,3187.2,3.13754]
[1731763192154,3.13716,3187.6,3187.4,0.03561283]
[1731763192352,3.13708,3187.7,3187.3,0.03564321]
[1731763192595,3.13708,3187.7,3187.5,0.03558245]
[1731763192757,3.13708,3187.7,3187.4,0.03565424]
[1731763193098,3.13708,3187.7,3187.5,0.03561363]
[1731763193474,3.13708,3187.7,3187.1,3.13762]
[1731763193791,3.13688,3187.9,3187.2,3.17323456]
[1731763194204,3.13707,3187.7,3187.2,0.03569456]
[1731763194501,3.13707,3187.7,3187.0,3.13771]
[1731763194502,3.13707,3187.7,3187.1,3.13763]
[1731763194661,3.13707,3187.7,3187.3,0.03566417]
[1731763195004,3.13707,3187.7,3187.1,3.13763]
[1731763195175,3.13707,3187.7,3187.4,0.03563379]
[1731763195497,3.13707,3187.7,3187.5,0.03558245]
[1731763195705,0.62408846,3188.0,3187.5,0.03558245]
[1731763195706,3.13703,3187.8,3187.5,0.03558245]
[1731763195902,3.13703,3187.8,3186.8,0.06275174]
[1731763195903,6.13656,3188.2,3187.4,3.13726]
[1731763196193,3.13666,3188.1,3187.6,0.03561048]
[1731763196395,3.13666,3188.1,3187.5,0.03564087]
[1731763196610,3.13666,3188.1,3187.7,0.03557816]
[1731763196757,6.13656,3188.2,3187.6,0.03560757]
[1731763196960,3.75252839,3188.1,3187.8,0.03554681]
[1731763197161,3.75252839,3188.1,3187.7,0.03557719]
[1731763197372,3.1362,3188.6,3187.6,3.13708]
[1731763197572,6.13629,3188.5,3187.9,3.13676]
[1731763198199,6.13629,3188.5,3188.0,0.03545021]
[1731763199115,3.13637,3188.4,3188.0,0.03545021]
[1731763199416,3.13666,3188.1,3188.0,0.03545021]
[1731763199705,3.13666,3188.1,3188.0,0.03544128]
[1731763200211,3.1365,3188.3,3187.5,3.13722]
[1731763200379,3.1365,3188.3,3188.0,0.03578548]
[1731763200562,3.1365,3188.3,3187.7,3.13703]
[1731763200767,3.1365,3188.3,3188.1,0.03575509]
[1731763201000,3.13629,3188.5,3187.8,3.13689]
[1731763201001,6.13638,3188.4,3187.8,3.13689]
[1731763201303,3.13646,3188.3,3187.5,3.13722]
[1731763201520,3.13666,3188.1,3187.9,0.03581586]
[1731763201707,3.13666,3188.1,3187.5,3.13722]
[1731763201895,3.13666,3188.1,3188.0,0.03545097]
[1731763202227,3.13646,3188.3,3187.6,3.13714]
[1731763202426,3.13646,3188.3,3188.0,0.03545097]
[1731763202579,3.13646,3188.3,3187.6,3.13714]
[1731763202784,3.13656,3188.2,3188.1,0.03542059]
[1731763202980,3.0,3188.4,3186.9,3.13776]
[1731763202981,3.13698,3187.8,3186.9,3.13776]
[1731763203185,3.13718,3187.6,3187.0,6.451416]
[1731763203621,3.13718,3187.6,3187.0,6.13764]
[1731763204134,3.13718,3187.6,3187.0,3.13764]
[1731763204832,3.13718,3187.6,3187.0,3.13774]
[1731763204990,3.13726,3187.5,3186.8,6.13787]
[1731763205189,3.13726,3187.5,3186.8,4.1273481]
[1731763205490,3.13726,3187.5,3186.9,0.03587169]
[1731763205686,3.13718,3187.6,3186.9,3.17369169]
[1731763205999,3.13718,3187.6,3186.9,3.17371169]
[1731763206191,3.13726,3187.5,3186.9,3.17371169]
[1731763206586,3.13738,3187.4,3186.9,0.03587169]
[1731763207099,2.99205533,3187.8,3186.5,3.13815]
[1731763207400,3.13765,3187.1,3187.0,0.0358646]
[1731763207585,3.13765,3187.1,3186.5,3.13815]
[1731763207928,3.13765,3187.1,3186.3,3.1384]
[1731763207929,3.13778,3187.0,3186.3,3.13838]
[1731763208083,3.13747,3187.3,3186.5,3.13823]
[1731763208285,6.12901533,3187.8,3186.6,0.03601921]
[1731763208585,3.13765,3187.1,3186.6,0.03601921]
[1731763209009,3.13776,3187.0,3186.6,0.03601921]
[1731763209203,3.13787,3186.9,3186.6,0.03601921]
[1731763209396,3.13787,3186.9,3186.2,3.13844]
[1731763209615,3.13787,3186.9,3186.7,0.03588381]
[1731763209939,3.13803,3186.8,3186.1,3.13862]
[1731763210152,3.13803,3186.8,3185.8,6.4523]
[1731763210153,3.13814,3186.7,3185.9,3.13878]
[1731763210432,3.1383,3186.5,3185.8,3.1389]
[1731763211821,3.1383,3186.5,3185.4,0.95621211]
[1731763211822,2.99205533,3186.4,3185.4,0.64281211]
[1731763211997,3.0,3186.3,3185.4,0.64281211]
[1731763212331,3.13908,3185.7,3185.4,0.64281211]
[1731763212542,3.13922,3185.5,3185.4,0.64281211]
[1731763215941,3.13932,3185.4,3185.3,10.0]
[1731763216099,3.13873,3186.0,3185.3,11.0]
[1731763216300,3.13849,3186.3,3185.5,3.13913]
[1731763216529,3.13902,3185.8,3185.6,0.03517497]
[1731763217022,3.13921,3185.6,3185.3,10.0]
[1731763217227,3.13902,3185.8,3185.3,10.0]
[1731763217540,3.13931,3185.5,3185.3,10.0]
[1731763218138,3.139,3185.8,3185.3,10.0]
[1731763218139,3.13906,3185.7,3185.3,10.0]
[1731763218345,3.0,3186.1,3185.3,11.0]
[1731763218642,3.13842,3186.4,3185.6,3.13905]
[1731763219028,6.13842,3186.4,3186.3,40.0]
[1731763219412,3.0,3186.4,3186.3,40.0]
[1731763219749,3.13804,3186.7,3186.3,40.0]
[1731763220458,3.13804,3186.7,3186.4,0.03497787]
[1731763221053,3.0,3186.6,3186.4,0.03497787]
[1731763221716,3.13816,3186.6,3186.4,0.03497787]
[1731763223636,6.13816,3186.6,3186.5,0.03385344]
[1731763224162,6.13833,3186.4,3186.3,39.98497787]
[1731763225746,9.68038533,3186.4,3186.3,39.98497787]
[1731763226490,9.69038533,3186.4,3186.3,39.98497787]
[1731763228736,6.13833,3186.4,3186.3,39.98497787]
[1731763229035,3.13833,3186.4,3186.3,39.98497787]
[1731763229447,3.13833,3186.4,3186.3,40.01893218]
[1731763229847,3.13816,3186.6,3186.3,40.01893218]
[1731763230050,3.13833,3186.4,3186.3,40.01893218]
[1731763233633,2.910793,3186.4,3186.3,40.01893218]
[1731763233961,9.46284833,3186.4,3186.3,32.17283218]
[1731763234856,9.46284833,3186.4,3186.3,24.32673218]
[1731763235026,19.0289974,3186.4,3186.3,24.32673218]
[1731763235758,19.0289974,3186.4,3186.3,16.48063218]
[1731763236940,19.0189974,3186.4,3186.3,16.48063218]
[1731763237327,19.0289974,3186.4,3186.3,15.42995863]
[1731763237772,19.0189974,3186.4,3186.3,15.42995863]
[1731763237969,19.0289974,3186.4,3186.3,15.42995863]
[1731763238328,19.0189974,3186.4,3186.3,15.42995863]
[1731763238531,18.4689974,3186.4,3186.3,15.42995863]
[1731763238743,18.4689974,3186.4,3186.3,15.40815863]
[1731763239063,9.5489974,3186.4,3186.3,15.40815863]
[1731763240095,10.0889974,3186.4,3186.3,15.40815863]
[1731763240695,9.5389974,3186.4,3186.3,15.40815863]
[1731763240901,3.54694207,3186.4,3186.3,15.40815863]
[1731763242057,7.09694207,3186.4,3186.3,15.40815863]
[1731763244480,6.13824,3186.5,3186.3,15.40815863]
[1731763244654,6.13833,3186.4,3186.3,15.40815863]
[1731763245303,6.13833,3186.4,3186.3,15.37420432]
[1731763245658,6.13833,3186.4,3186.3,15.40703114]
[1731763245980,3.0,3186.4,3186.3,15.40703114]
[1731763247311,3.13773,3187.1,3186.3,15.40703114]
[1731763247312,3.13802,3186.8,3186.3,16.94773425]
[1731763247465,3.1379,3186.9,3186.3,20.08616425]
[1731763247666,3.13766,3187.1,3186.3,20.08616425]
[1731763248212,3.13776,3187.0,3186.3,20.08616425]
[1731763248567,3.13776,3187.0,3186.4,3.13829]
[1731763248767,3.00205533,3187.9,3186.4,2.04128717]
[1731763249068,3.13795,3186.8,3186.4,2.04128717]
[1731763249275,3.13811,3186.7,3186.4,0.03267074]
[1731763250214,3.13784,3186.9,3186.4,0.03267074]
[1731763250506,3.13823,3186.5,3186.4,0.03267074]
[1731763250910,3.13833,3186.4,3186.3,15.37420432]
[1731763251269,3.13833,3186.4,3186.3,15.40696127]
[1731763253818,9.68038533,3186.4,3186.3,15.40696127]
[1731763254177,9.68038533,3186.4,3186.3,15.37420432]
[1731763254383,9.68038533,3186.4,3186.3,15.40682763]
[1731763254903,9.70038533,3186.4,3186.3,7.56072763]
[1731763255279,9.70038533,3186.4,3186.3,7.52810432]
[1731763255710,9.70038533,3186.4,3186.3,7.12e-06]
[1731763256713,9.83229933,3186.4,3186.3,7.12e-06]
[1731763258587,12.82435466,3186.4,3186.3,7.12e-06]
[1731763259282,21.58435466,3186.4,3186.3,7.12e-06]
[1731763259721,21.58435466,3186.4,3185.3,10.0]
[1731763259722,3.13932,3185.4,3185.3,10.0]
[1731763259890,9.68137533,3185.4,3185.3,10.0]
[1731763260094,9.68137533,3185.4,3185.3,10.03301084]
[1731763260292,9.68137533,3185.4,3185.3,10.0]
[1731763260496,9.68137533,3185.4,3185.3,10.03299039]
[1731763261706,3.55,3185.4,3185.3,10.03299039]
[1731763262019,6.68932,3185.4,3185.3,10.03299039]
[1731763264910,7.33200223,3185.4,3185.3,10.03299039]
[1731763266927,3.13873,3186.0,3185.4,3.13931]
[1731763267122,3.13873,3186.0,3185.3,11.03628943]
[1731763267323,3.1391,3185.7,3185.5,0.0308771]
[1731763267495,3.13888,3185.9,3185.4,0.03090751]
[1731763267844,3.13866,3186.1,3185.5,0.03086446]
[1731763268013,3.76402874,3186.2,3185.5,3.17005446]
[1731763268185,2.99205533,3186.5,3185.5,4.48705991]
[1731763268388,2.99205533,3186.5,3185.5,1.34786991]
[1731763268389,3.13853,3186.2,3185.5,1.34786991]
[1731763268587,3.13883,3185.9,3185.5,1.34786991]
[1731763269331,3.13883,3185.9,3185.5,0.03086446]
[1731763269527,3.13893,3185.8,3185.5,0.03086446]
[1731763269755,3.13893,3185.8,3185.3,10.0]
[1731763270051,3.13878,3186.0,3185.3,10.0]
[1731763270226,3.13878,3186.0,3185.4,0.03084818]
[1731763270835,3.13897,3185.8,3185.4,0.03084818]
[1731763271017,3.13884,3185.9,3185.4,0.03084818]
[1731763271018,3.13906,3185.7,3185.4,0.03084818]
[1731763271419,0.55,3186.1,3185.4,0.03084818]
[1731763271420,3.13921,3185.6,3185.4,0.03084818]
[1731763272403,3.13895,3185.8,3185.4,0.03084818]
[1731763272606,0.55,3186.1,3185.4,0.03084818]
[1731763272607,3.55,3186.1,3185.4,0.03084818]
[1731763272814,6.13863,3186.1,3185.5,3.13922]
[1731763273044,3.1385,3186.3,3185.6,3.13905]
[1731763273253,2.99205533,3186.5,3185.6,0.03100108]
[1731763273451,3.62567875,3186.4,3185.4,3.13931]
[1731763273607,3.62567875,3186.4,3185.7,0.03097066]
[1731763273809,3.62567875,3186.4,3185.5,3.13921]
[1731763274111,3.1386,3186.2,3185.8,0.03094025]
[1731763274334,3.1386,3186.2,3185.5,3.13921]
[1731763274549,3.1386,3186.2,3185.9,0.03090984]
[1731763274754,3.1386,3186.2,3185.5,3.13921]
[1731763274934,3.1386,3186.2,3186.0,0.03087943]
[1731763275255,3.1386,3186.2,3186.1,0.03084902]
[1731763275748,3.1386,3186.2,3185.5,3.13921]
[1731763276108,0.55,3186.3,3185.7,3.13893]
[1731763276315,3.62567875,3186.4,3185.7,3.13893]
[1731763276677,3.13844,3186.3,3185.8,0.03094025]
[1731763277044,3.13844,3186.3,3185.7,3.13893]
[1731763277232,3.13844,3186.3,3185.9,0.03090984]
[1731763277432,3.13844,3186.3,3185.7,3.13893]
[1731763277627,3.13844,3186.3,3186.0,0.03087943]
[1731763277940,3.13844,3186.3,3185.7,3.13893]
[1731763278133,3.13844,3186.3,3186.1,0.03084902]
[1731763278334,3.13844,3186.3,3185.7,3.13893]
[1731763278561,6.13844,3186.3,3186.2,0.03070774]
[1731763278883,6.13844,3186.3,3185.8,0.03082938]
[1731763279082,6.13844,3186.3,3186.2,0.03070872]
[1731763279265,3.0,3186.4,3185.8,3.13884]
[1731763279460,6.13836,3186.4,3186.2,0.03070872]
[1731763279658,3.13851,3186.3,3185.6,3.13911]
[1731763279970,3.13851,3186.3,3185.7,3.139]
[1731763280267,3.13851,3186.3,3185.7,3.16985493]
[1731763281071,3.13851,3186.3,3185.7,0.03085493]
[1731763281242,3.13853,3186.2,3185.7,0.03085493]
[1731763281572,3.13864,3186.1,3185.7,0.03085493]
[1731763281874,3.13861,3186.2,3185.5,3.1392]
[1731763282173,3.13861,3186.2,3185.8,0.02891265]
[1731763282334,3.13861,3186.2,3185.5,3.1392]
[1731763282751,3.13861,3186.2,3185.6,3.16807131]
[1731763283071,3.13833,3186.4,3185.8,3.13892]
[1731763283450,3.13833,3186.4,3185.6,3.16807131]
[1731763283644,3.68816,3186.6,3185.9,0.02885789]
[1731763283645,3.13844,3186.3,3185.9,0.02885789]
[1731763283844,3.13863,3186.1,3185.9,0.02885789]
[1731763284083,3.13863,3186.1,3185.4,3.1393]
[1731763284237,3.13863,3186.1,3186.0,0.02880605]
[1731763284548,3.13883,3185.9,3185.3,10.0]
[1731763284878,0.55,3186.0,3185.4,0.02806122]
[1731763285177,3.13884,3185.9,3185.4,0.02806122]
[1731763285385,3.13913,3185.6,3185.4,0.02806122]
[1731763285679,3.13914,3185.6,3185.4,0.02806122]
[1731763285978,3.13922,3185.5,3185.4,0.02806122]
[1731763287686,3.13903,3185.7,3185.4,0.02806122]
[1731763287856,3.13913,3185.6,3185.4,0.02806122]
[1731763288259,3.13922,3185.5,3185.4,0.02806122]
[1731763288673,3.13903,3185.7,3185.4,0.02806122]
[1731763289044,3.13865,3186.1,3185.4,3.16728122]
[1731763289244,0.61597647,3186.0,3185.5,0.06278456]
[1731763289588,3.13807,3186.7,3186.0,3.13866]
[1731763289944,3.13807,3186.7,3186.1,0.02791446]
[1731763290288,3.13785,3186.9,3186.2,3.13853]
[1731763290489,3.0,3186.7,3186.2,3.13853]
[1731763290780,3.0,3186.7,3186.3,0.02783991]
[1731763291950,3.0,3186.7,3186.3,3.16625991]
[1731763292158,3.63411373,3186.9,3186.3,3.16625991]
[1731763292344,6.13795,3186.8,3186.3,0.02783991]
[1731763292741,6.13795,3186.8,3186.2,3.13853]
[1731763292965,0.63411373,3186.9,3186.0,3.1387]
[1731763292966,3.13804,3186.7,3186.0,3.1387]
[1731763293167,3.13833,3186.4,3186.3,0.02778072]
[1731763293341,3.13833,3186.4,3185.7,3.13896]
[1731763293555,3.13814,3186.6,3185.7,3.13896]
[1731763293556,0.55,3186.5,3185.8,3.13885]
[1731763293758,3.13825,3186.5,3185.8,3.16678275]
[1731763294173,0.55,3186.7,3186.0,3.13872]
[1731763294174,3.0,3186.7,3186.0,3.13872]
[1731763294348,3.0,3186.7,3185.8,0.65850703]
[1731763294349,3.63411373,3186.9,3186.1,3.13863]
[1731763294553,3.63411373,3186.9,3186.3,3.13842]
[1731763294747,3.0,3186.9,3186.4,3.13833]
[1731763295050,3.13738,3187.4,3186.5,3.13823]
[1731763295271,3.13738,3187.4,3186.7,3.13794]
[1731763295498,3.13754,3187.3,3186.8,0.02764429]
[1731763295813,0.63235648,3187.5,3186.4,3.13832]
[1731763296022,3.13758,3187.2,3186.5,3.13819]
[1731763296172,3.13758,3187.2,3186.5,3.16592256]
[1731763296378,3.0,3187.1,3186.5,3.16592256]
[1731763296690,3.0,3187.1,3186.6,3.13814]
[1731763296885,3.0,3187.1,3186.7,0.02762996]
[1731763297087,3.13736,3187.4,3186.7,0.02762996]
[1731763297286,0.55,3187.4,3186.9,3.13783]
[1731763297515,0.55,3187.4,3187.0,0.02748754]
[1731763298021,3.13739,3187.4,3187.0,0.02748754]
[1731763298218,3.13739,3187.4,3186.7,3.13803]
[1731763298427,3.13739,3187.4,3187.1,0.02745521]
[1731763298574,3.63235648,3187.5,3186.9,3.13778]
[1731763298781,3.76961648,3187.5,3187.2,0.02742483]
[1731763299102,3.0,3187.4,3186.9,3.13778]
[1731763299479,3.13726,3187.5,3186.9,3.13778]
[1731763300174,2.99205533,3187.7,3186.9,3.13778]
[1731763300385,3.0,3187.7,3187.2,3.13748]
[1731763300906,3.0,3188.2,3187.0,3.13768]
[1731763301107,3.0,3187.7,3187.0,3.451448]
[1731763301278,3.0,3187.7,3187.1,3.13764]
[1731763303074,3.13676,3188.0,3187.0,0.313768]